fUST/lending_fUST_20250603
["ID","MTS","AMOUNT","RATE_DAILY","PERIOD"]
[363982583,1748952639801,-440.0,0.00016712,2]
[363982584,1748952639810,-440.0,0.00016712,2]
[363982585,1748952639820,-440.0,0.00016712,2]
[363982586,1748952639831,-440.0,0.00016712,2]
[363982587,1748952639841,-420.0,0.00016712,2]
[363982588,1748952639851,-487.64112608,0.00016712,2]
[363982589,1748952639861,-440.0,0.00016712,2]
[363982590,1748952639871,-440.0,0.00016712,2]
[363982591,1748952639881,-547.93213054,0.00016712,2]
[363982592,1748952639890,-962.74,0.00016712,2]
[363982593,1748952639900,-440.0,0.00016712,2]
[363982594,1748952639912,-440.0,0.00016712,2]
[363982595,1748952639922,-440.0,0.00016712,2]
[363982596,1748952639933,-749.18,0.00016712,2]
[363982597,1748952639943,-440.0,0.00016712,2]
[363982598,1748952639953,-440.0,0.00016712,2]
[363982599,1748952639963,-440.0,0.00016712,2]
[363982600,1748952639973,-410.0,0.00016712,2]
[363982601,1748952639982,-585.15499267,0.00016712,2]
[363982602,1748952639993,-440.0,0.00016712,2]
[363982603,1748952640003,-391.70170255,0.00016712,2]
[363982604,1748952640013,-440.0,0.00016712,2]
[363982605,1748952640023,-410.0,0.00016712,2]
[363982606,1748952640032,-259.71971831,0.00016712,2]
[363982607,1748952640042,-420.0,0.00016712,2]
[363982608,1748952640052,-929.53,0.00016712,2]
[363982609,1748952640062,-504.75244903,0.00016712,2]
[363982610,1748952640071,-266.13882674,0.00016712,2]
[363982611,1748952640080,-440.0,0.00016712,2]
[363982612,1748952640090,-440.0,0.00016712,2]
[363982613,1748952640100,-440.0,0.00016712,2]
[363982614,1748952640109,-440.0,0.00016712,2]
[363982615,1748952640119,-440.0,0.00016712,2]
[363982616,1748952640129,-295.77096196,0.00016712,2]
[363982617,1748952640139,-440.0,0.00016712,2]
[363982618,1748952640148,-440.0,0.00016712,2]
[363982619,1748952640160,-502.65,0.00016712,2]
[363982620,1748952640170,-440.0,0.00016712,2]
[363982621,1748952640180,-440.0,0.00016712,2]
[363982622,1748952640190,-343.93283531,0.00016712,2]
[363982623,1748952640200,-440.0,0.00016712,2]
[363982624,1748952640210,-415.74512728,0.00016712,2]
[363982625,1748952640220,-257.03695198,0.00016712,2]
[363982626,1748952640230,-489.81,0.00016712,2]
[363982627,1748952640240,-440.0,0.00016712,2]
[363982628,1748952640250,-440.0,0.00016712,2]
[363982629,1748952640260,-440.0,0.00016712,2]
[363982630,1748952640269,-440.0,0.00016712,2]
[363982631,1748952640279,-334.73981873,0.00016712,2]
[363982632,1748952640289,-440.0,0.00016712,2]
[363982633,1748952640299,-410.0,0.00016712,2]
[363982634,1748952640308,-440.0,0.00016712,2]
[363982635,1748952640318,-506.8156173,0.00016712,2]
[363982636,1748952640328,-440.0,0.00016712,2]
[363982637,1748952640337,-425.20703047,0.00016712,2]
[363982638,1748952640347,-440.0,0.00016712,2]
[363982639,1748952640356,-440.0,0.00016712,2]
[363982640,1748952640366,-284.2877493,0.00016712,2]
[363982641,1748952640376,-440.0,0.00016712,2]
[363982642,1748952640387,-440.0,0.00016712,2]
[363982643,1748952640397,-481.52746359,0.00016712,2]
[363982644,1748952640411,-775.51,0.00016712,2]
[363982645,1748952640421,-440.0,0.00016712,2]
[363982646,1748952640431,-440.0,0.00016712,2]
[363982647,1748952640440,-440.0,0.00016712,2]
[363982648,1748952640450,-169.53004951,0.00016712,2]
[363982649,1748952640461,-440.0,0.00016712,2]
[363982650,1748952640471,-440.0,0.00016712,2]
[363982651,1748952640481,-440.0,0.00016712,2]
[363982652,1748952640491,-440.0,0.00016712,2]
[363982653,1748952640501,-440.0,0.00016712,2]
[363982654,1748952640511,-431.26164576,0.00016712,2]
[363982655,1748952640520,-440.0,0.00016712,2]
[363982656,1748952640530,-440.0,0.00016712,2]
[363982657,1748952640540,-420.0,0.00016712,2]
[363982658,1748952640550,-440.0,0.00016712,2]
[363982659,1748952640561,-440.0,0.00016712,2]
[363982660,1748952640572,-440.0,0.00016712,2]
[363982661,1748952640581,-410.0,0.00016712,2]
[363982662,1748952640591,-440.0,0.00016712,2]
[363982663,1748952640600,-212.34259664,0.00016712,2]
[363982664,1748952640611,-440.0,0.00016712,2]
[363982665,1748952640621,-440.0,0.00016712,2]
[363982666,1748952640631,-440.0,0.00016712,2]
[363982667,1748952640640,-404.0,0.00016712,2]
[363982668,1748952640649,-440.0,0.00016712,2]
[363982669,1748952640662,-440.0,0.00016712,2]
[363982670,1748952640672,-440.0,0.00016712,2]
[363982671,1748952640683,-830.89,0.00016712,2]
[363982672,1748952640694,-721.62,0.00016712,2]
[363982673,1748952640704,-578.79765112,0.00016712,2]
[363982674,1748952640715,-658.97,0.00016712,2]
[363982675,1748952640727,-440.0,0.00016712,2]
[363982676,1748952640736,-420.0,0.00016712,2]
[363982677,1748952640747,-417.29061457,0.00016712,2]
[363982678,1748952640758,-440.0,0.00016712,2]
[363982679,1748952640767,-410.0,0.00016712,2]
[363982680,1748952640777,-421.38333215,0.00016712,2]
[363982681,1748952640787,-440.0,0.00016712,2]
[363982682,1748952640798,-440.0,0.00016712,2]
[363982683,1748952640808,-420.0,0.00016712,2]
[363982684,1748952640818,-440.0,0.00016712,2]
[363982685,1748952640828,-420.0,0.00016712,2]
[363982686,1748952640837,-440.0,0.00016712,2]
[363982687,1748952640846,-440.0,0.00016712,2]
[363982688,1748952640856,-440.0,0.00016712,2]
[363982689,1748952640865,-440.0,0.00016712,2]
[363982690,1748952640876,-420.0,0.00016712,2]
[363982691,1748952640885,-440.0,0.00016712,2]
[363982692,1748952640895,-793.39,0.00016712,2]
[363982693,1748952640904,-318.26145213,0.00016712,2]
[363982694,1748952640916,-420.0,0.00016712,2]
[363982695,1748952640926,-440.0,0.00016712,2]
[363982696,1748952640936,-440.0,0.00016712,2]
[363982697,1748952640946,-448.30399999,0.00016712,2]
[363982698,1748952640956,-440.0,0.00016712,2]
[363982699,1748952640965,-440.0,0.00016712,2]
[363982700,1748952640975,-440.0,0.00016712,2]
[363982701,1748952640985,-420.0,0.00016712,2]
[363982702,1748952640994,-440.0,0.00016712,2]
[363982703,1748952641003,-440.0,0.00016712,2]
[363982704,1748952641013,-440.0,0.00016712,2]
[363982705,1748952641022,-440.0,0.00016712,2]
[363982706,1748952641034,-910.15,0.00016712,2]
[363982707,1748952641043,-420.0,0.00016712,2]
[363982708,1748952641053,-440.0,0.00016712,2]
[363982709,1748952641062,-440.0,0.00016712,2]
[363982710,1748952641071,-440.0,0.00016712,2]
[363982711,1748952641081,-440.0,0.00016712,2]
[363982712,1748952641090,-440.0,0.00016712,2]
[363982714,1748952641100,-440.0,0.00016712,2]
[363982715,1748952641109,-440.0,0.00016712,2]
[363982716,1748952641119,-1158.85,0.00016712,2]
[363982717,1748952641128,-440.0,0.00016712,2]
[363982718,1748952641138,-440.0,0.00016712,2]
[363982719,1748952641147,-440.0,0.00016712,2]
[363982720,1748952641157,-440.0,0.00016712,2]
[363982722,1748952641167,-1354.75,0.00016712,2]
[363982724,1748952641177,-4178.31,0.00016712,2]
[363982726,1748952641186,-440.0,0.00016712,2]
[363982728,1748952641196,-440.0,0.00016712,2]
[363982730,1748952641205,-440.0,0.00016712,2]
[363982732,1748952641216,-440.0,0.00016712,2]
[363982734,1748952641226,-1406.66,0.00016712,2]
[363982736,1748952641235,-440.0,0.00016712,2]
[363982738,1748952641244,-490.39,0.00016712,2]
[363982741,1748952641254,-410.0,0.00016712,2]
[363982742,1748952641263,-4549.64,0.00016712,2]
[363982744,1748952641272,-440.0,0.00016712,2]
[363982746,1748952641282,-440.0,0.00016712,2]
[363982748,1748952641291,-440.0,0.00016712,2]
[363982751,1748952641301,-413.61387951,0.00016712,2]
[363982753,1748952641312,-440.0,0.00016712,2]
[363982755,1748952641321,-440.0,0.00016712,2]
[363982757,1748952641331,-440.0,0.00016712,2]
[363982767,1748952641425,-6349.53,0.00016712,2]
[363982770,1748952641436,-440.0,0.00016712,2]
[363982772,1748952641447,-464.87,0.00016712,2]
[363982774,1748952641457,-440.0,0.00016712,2]
[363982776,1748952641467,-1054.94,0.00016712,2]
[363982778,1748952641477,-440.0,0.00016712,2]
[363982780,1748952641486,-2078.29,0.00016712,2]
[363982782,1748952641496,-440.0,0.00016712,2]
[363982784,1748952641505,-440.0,0.00016712,2]
[363982786,1748952641515,-151.0,0.00016712,2]
[363982788,1748952641526,-975.51,0.00016712,2]
[363982790,1748952641535,-440.0,0.00016712,2]
[363982792,1748952641544,-440.0,0.00016712,2]
[363982794,1748952641554,-440.0,0.00016712,2]
[363982796,1748952641564,-440.0,0.00016712,2]
[363982798,1748952641573,-440.0,0.00016712,2]
[363982800,1748952641583,-440.0,0.00016712,2]
[363982802,1748952641592,-440.0,0.00016712,2]
[363982804,1748952641602,-1037.57,0.00016712,2]
[363982806,1748952641612,-2003.58,0.00016712,2]
[363982808,1748952641622,-650.22,0.00016712,2]
[363982810,1748952641631,-420.0,0.00016712,2]
[363982812,1748952641640,-440.0,0.00016712,2]
[363982814,1748952641650,-440.0,0.00016712,2]
[363982816,1748952641661,-420.0,0.00016712,2]
[363982818,1748952641671,-440.0,0.00016712,2]
[363982820,1748952641681,-333.26758842,0.00016712,2]
[363982822,1748952641691,-420.0,0.00016712,2]
[363982824,1748952641701,-440.0,0.00016712,2]
[363982826,1748952641711,-440.0,0.00016712,2]
[363982828,1748952641726,-440.0,0.00016712,2]
[363982830,1748952641739,-440.0,0.00016712,2]
[363982832,1748952641748,-494.09,0.00016712,2]
[363982834,1748952641759,-440.0,0.00016712,2]
[363982836,1748952641768,-440.0,0.00016712,2]
[363982838,1748952641778,-1252.89,0.00016712,2]
[363982840,1748952641788,-440.0,0.00016712,2]
[363982842,1748952641803,-440.0,0.00016712,2]
[363982844,1748952641814,-440.0,0.00016712,2]
[363982846,1748952641824,-440.0,0.00016712,2]
[363982848,1748952641835,-606.62,0.00016712,2]
[363982850,1748952641844,-440.0,0.00016712,2]
[363982852,1748952641854,-440.0,0.00016712,2]
[363982854,1748952641863,-350.19880959,0.00016712,2]
[363982856,1748952641873,-440.0,0.00016712,2]
[363982858,1748952641882,-440.0,0.00016712,2]
[363982860,1748952641892,-219.76687433,0.00016712,2]
[363982862,1748952641902,-3573.9,0.00016712,2]
[363982865,1748952641912,-440.0,0.00016712,2]
[363982867,1748952641921,-395.04103203,0.00016712,2]
[363982869,1748952641931,-440.0,0.00016712,2]
[363982871,1748952641940,-406.53038217,0.00016712,2]
[363982873,1748952641950,-440.0,0.00016712,2]
[363982875,1748952641959,-410.11199095,0.00016712,2]
[363982877,1748952641968,-440.0,0.00016712,2]
[363982879,1748952641977,-440.0,0.00016712,2]
[363982881,1748952641986,-440.0,0.00016712,2]
[363982883,1748952641996,-440.0,0.00016712,2]
[363982885,1748952642005,-440.0,0.00016712,2]
[363982887,1748952642015,-440.0,0.00016712,2]
[363982889,1748952642024,-440.0,0.00016712,2]
[363982891,1748952642033,-440.0,0.00016712,2]
[363982893,1748952642043,-440.0,0.00016712,2]
[363982895,1748952642052,-510.62,0.00016712,2]
[363982897,1748952642062,-440.0,0.00016712,2]
[363982899,1748952642071,-420.0,0.00016712,2]
[363982901,1748952642080,-440.0,0.00016712,2]
[363982903,1748952642090,-4695.14,0.00016712,2]
[363982905,1748952642099,-420.0,0.00016712,2]
[363982907,1748952642108,-440.0,0.00016712,2]
[363982909,1748952642118,-440.0,0.00016712,2]
[363982911,1748952642127,-413.29586856,0.00016712,2]
[363982913,1748952642137,-444.57,0.00016712,2]
[363982915,1748952642146,-440.0,0.00016712,2]
[363982917,1748952642156,-440.0,0.00016712,2]
[363982919,1748952642167,-440.0,0.00016712,2]
[363982921,1748952642176,-420.0,0.00016712,2]
[363982923,1748952642185,-420.0,0.00016712,2]
[363982925,1748952642195,-1259.89,0.00016712,2]
[363982927,1748952642204,-460.72,0.00016712,2]
[363982929,1748952642214,-508.42,0.00016712,2]
[363982931,1748952642223,-440.0,0.00016712,2]
[363982933,1748952642233,-440.0,0.00016712,2]
[363982935,1748952642242,-452.23925919,0.00016712,2]
[363982937,1748952642252,-440.0,0.00016712,2]
[363982939,1748952642262,-1819.71,0.00016712,2]
[363982941,1748952642271,-2376.31,0.00016712,2]
[363982943,1748952642281,-440.0,0.00016712,2]
[363982945,1748952642291,-440.0,0.00016712,2]
[363982947,1748952642300,-440.0,0.00016712,2]
[363982949,1748952642309,-440.0,0.00016712,2]
[363982951,1748952642318,-440.0,0.00016712,2]
[363982953,1748952642329,-440.0,0.00016712,2]
[363982955,1748952642340,-440.0,0.00016712,2]
[363982957,1748952642350,-568.6,0.00016712,2]
[363982959,1748952642360,-420.0,0.00016712,2]
[363982961,1748952642371,-440.0,0.00016712,2]
[363982963,1748952642380,-440.0,0.00016712,2]
[363982965,1748952642390,-772.08,0.00016712,2]
[363982967,1748952642400,-440.0,0.00016712,2]
[363982969,1748952642409,-858.11,0.00016712,2]
[363982971,1748952642420,-440.0,0.00016712,2]
[363982973,1748952642431,-806.74,0.00016712,2]
[363982975,1748952642440,-271.13052397,0.00016712,2]
[363982977,1748952642450,-440.0,0.00016712,2]
[363982979,1748952642459,-440.0,0.00016712,2]
[363982981,1748952642468,-440.0,0.00016712,2]
[363982983,1748952642478,-442.95123552,0.00016712,2]
[363982985,1748952642488,-534.92,0.00016712,2]
[363982987,1748952642498,-948.51,0.00016712,2]
[363982989,1748952642508,-440.0,0.00016712,2]
[363982991,1748952642517,-541.04,0.00016712,2]
[363982993,1748952642527,-440.0,0.00016712,2]
[363982995,1748952642536,-2900.83,0.00016712,2]
[363982997,1748952642546,-440.0,0.00016712,2]
[363982999,1748952642556,-3172.41,0.00016712,2]
[363983002,1748952642566,-944.55,0.00016712,2]
[363983004,1748952642576,-440.0,0.00016712,2]
[363983006,1748952642585,-440.0,0.00016712,2]
[363983008,1748952642594,-440.0,0.00016712,2]
[363983009,1748952642604,-440.0,0.00016712,2]
[363983011,1748952642613,-420.0,0.00016712,2]
[363983014,1748952642623,-440.0,0.00016712,2]
[363983015,1748952642633,-750.33,0.00016712,2]
[363983017,1748952642643,-440.0,0.00016712,2]
[363983019,1748952642652,-535.6537343,0.00016712,2]
[363983022,1748952642662,-440.0,0.00016712,2]
[363983024,1748952642674,-486.46985465,0.00016712,2]
[363983026,1748952642683,-420.0,0.00016712,2]
[363983028,1748952642692,-440.0,0.00016712,2]
[363983030,1748952642702,-419.62741147,0.00016712,2]
[363983032,1748952642712,-440.0,0.00016712,2]
[363983034,1748952642725,-491.8,0.00016712,2]
[363983036,1748952642735,-440.0,0.00016712,2]
[363983038,1748952642745,-5029.01,0.00016712,2]
[363983040,1748952642756,-500.43404851,0.00016712,2]
[363983042,1748952642766,-440.0,0.00016712,2]
[363983044,1748952642775,-1740.48,0.00016712,2]
[363983046,1748952642784,-420.0,0.00016712,2]
[363983048,1748952642794,-410.0,0.00016712,2]
[363983050,1748952642804,-440.0,0.00016712,2]
[363983052,1748952642813,-440.0,0.00016712,2]
[363983054,1748952642822,-1274.01,0.00016712,2]
[363983056,1748952642832,-5951.72,0.00016712,2]
[363983058,1748952642841,-440.0,0.00016712,2]
[363983060,1748952642851,-151.0,0.00016712,2]
[363983068,1748952642941,-393.60472095,0.00016712,2]
[363983069,1748952642953,-151.0,0.00016712,2]
[363983070,1748952642963,-5342.18,0.00016712,2]
[363983071,1748952642973,-440.0,0.00016712,2]
[363983072,1748952642984,-440.0,0.00016712,2]
[363983073,1748952642994,-440.0,0.00016712,2]
[363983074,1748952643004,-440.0,0.00016712,2]
[363983075,1748952643014,-420.0,0.00016712,2]
[363983076,1748952643024,-440.0,0.00016712,2]
[363983077,1748952643034,-583.75810959,0.00016712,2]
[363983078,1748952643044,-17743.27,0.00016712,2]
[363983080,1748952643054,-290.0,0.00016712,2]
[363983081,1748952643063,-440.0,0.00016712,2]
[363983082,1748952643073,-440.0,0.00016712,2]
[363983083,1748952643083,-420.0,0.00016712,2]
[363983084,1748952643092,-440.0,0.00016712,2]
[363983085,1748952643102,-467.92466509,0.00016712,2]
[363983086,1748952643112,-151.0,0.00016712,2]
[363983087,1748952643121,-500.0,0.00016712,2]
[363983088,1748952643131,-2007.43511669,0.00016749,2]
[363983090,1748952643140,-500.0,0.00016773,2]
[363983092,1748952643150,-500.0,0.00016773,2]
[363983094,1748952643159,-500.0,0.00016773,2]
[363983096,1748952643170,-500.0,0.00016773,2]
[363983098,1748952643179,-500.82002908,0.00016773,2]
[363983100,1748952643189,-166.4247989,0.00016773,2]
[363983102,1748952643198,-160.2596048,0.00016773,2]
[363983104,1748952643207,-500.0,0.00016773,2]
[363983106,1748952643216,-265.73935326,0.00016773,2]
[363983108,1748952643227,-500.0,0.00016773,2]
[363983112,1748952643236,-502.35685158,0.00016773,2]
[363983115,1748952643245,-500.0,0.00016773,2]
[363983118,1748952643255,-268.38324214,0.00016773,2]
[363983121,1748952643264,-648.67411635,0.00016773,2]
[363983122,1748952643273,-500.0,0.00016773,2]
[363983124,1748952643282,-367.65937497,0.00016773,2]
[363983127,1748952643291,-500.0,0.00016773,2]
[363983130,1748952643301,-160.75873185,0.00016773,2]
[363983132,1748952643311,-158.25397877,0.00016773,2]
[363983134,1748952643320,-500.0,0.00016773,2]
[363983136,1748952643329,-419.92773648,0.00016773,2]
[363983138,1748952643338,-151.0,0.000169,2]
[363983140,1748952643348,-3488.4974603,0.000169,2]
[363983141,1748952643357,-2007.43511669,0.00016955,2]
[363983144,1748952643367,-151.0,0.00016972,2]
[363983145,1748952643376,-151.0,0.00016972,2]
[363983147,1748952643385,-151.0,0.00016972,2]
[363983149,1748952643395,-159.138728,0.00016972,2]
[363983152,1748952643405,-159.138728,0.00016972,2]
[363983154,1748952643416,-178.079884,0.00016972,2]
[363983156,1748952643425,-178.079884,0.00016972,2]
[363983158,1748952643434,-500.0,0.00016973,2]
[363983160,1748952643444,-500.0,0.00016973,2]
[363983161,1748952643454,-500.0,0.00016973,2]
[363983163,1748952643463,-501.82835657,0.00016973,2]
[363983164,1748952643472,-500.0,0.00016973,2]
[363983166,1748952643482,-471.16957143,0.00016973,2]
[363983168,1748952643491,-500.0,0.00016973,2]
[363983170,1748952643500,-501.75675153,0.00016973,2]
[363983172,1748952643509,-160.27665248,0.00016973,2]
[363983174,1748952643519,-158.76192958,0.00016973,2]
[363983176,1748952643528,-500.0,0.00016973,2]
[363983178,1748952643538,-500.0,0.00016985,2]
[363983180,1748952643547,-500.0,0.00016985,2]
[363983182,1748952643556,-500.0,0.00016985,2]
[363983185,1748952643565,-500.0,0.00016985,2]
[363983187,1748952643575,-169.73,0.00016985,2]
[363983189,1748952643584,-842.5625,0.00016985,3]
[363983191,1748952643595,-440.0,0.00016986,2]
[363983193,1748952643604,-536.34,0.00016986,2]
[363983195,1748952643614,-440.0,0.00016986,2]
[363983197,1748952643623,-389.81196213,0.00016986,2]
[363983199,1748952643633,-440.0,0.00016986,2]
[363983201,1748952643644,-440.0,0.00016986,2]
[363983203,1748952643653,-440.0,0.00016986,2]
[363983205,1748952643663,-440.0,0.00016986,2]
[363983207,1748952643673,-440.0,0.00016986,2]
[363983209,1748952643683,-440.0,0.00016986,2]
[363983211,1748952643693,-440.0,0.00016986,2]
[363983213,1748952643704,-440.0,0.00016986,2]
[363983215,1748952643717,-440.0,0.00016986,2]
[363983218,1748952643732,-528.93,0.00016986,2]
[363983222,1748952643742,-440.0,0.00016986,2]
[363983225,1748952643754,-440.0,0.00016986,2]
[363983228,1748952643763,-440.0,0.00016986,2]
[363983232,1748952643774,-440.0,0.00016986,2]
[363983234,1748952643784,-440.0,0.00016986,2]
[363983236,1748952643795,-173.86889505,0.00016986,2]
[363983238,1748952643804,-440.0,0.00016986,2]
[363983241,1748952643815,-440.0,0.00016986,2]
[363983243,1748952643824,-440.0,0.00016986,2]
[363983246,1748952643834,-440.0,0.00016986,2]
[363983249,1748952643843,-440.0,0.00016986,2]
[363983252,1748952643852,-410.0,0.00016986,2]
[363983254,1748952643862,-962.74,0.00016986,2]
[363983256,1748952643872,-440.0,0.00016986,2]
[363983258,1748952643881,-440.0,0.00016986,2]
[363983260,1748952643892,-440.0,0.00016986,2]
[363983263,1748952643901,-749.18,0.00016986,2]
[363983265,1748952643909,-440.0,0.00016986,2]
[363983267,1748952643918,-440.0,0.00016986,2]
[363983269,1748952643927,-440.0,0.00016986,2]
[363983271,1748952643935,-440.0,0.00016986,2]
[363983272,1748952643943,-440.0,0.00016986,2]
[363983274,1748952643952,-929.53,0.00016986,2]
[363983276,1748952643962,-440.0,0.00016986,2]
[363983278,1748952643971,-440.0,0.00016986,2]
[363983280,1748952643980,-440.0,0.00016986,2]
[363983282,1748952643990,-440.0,0.00016986,2]
[363983284,1748952643999,-440.0,0.00016986,2]
[363983286,1748952644008,-440.0,0.00016986,2]
[363983288,1748952644018,-440.0,0.00016986,2]
[363983290,1748952644027,-502.65,0.00016986,2]
[363983292,1748952644037,-440.0,0.00016986,2]
[363983294,1748952644046,-440.0,0.00016986,2]
[363983296,1748952644055,-440.0,0.00016986,2]
[363983298,1748952644066,-489.81,0.00016986,2]
[363983300,1748952644075,-440.0,0.00016986,2]
[363983302,1748952644085,-440.0,0.00016986,2]
[363983304,1748952644094,-440.0,0.00016986,2]
[363983306,1748952644103,-440.0,0.00016986,2]
[363983308,1748952644113,-400.0,0.00016986,2]
[363983310,1748952644123,-440.0,0.00016986,2]
[363983312,1748952644132,-440.0,0.00016986,2]
[363983314,1748952644141,-440.0,0.00016986,2]
[363983316,1748952644151,-440.0,0.00016986,2]
[363983318,1748952644160,-440.0,0.00016986,2]
[363983320,1748952644171,-440.0,0.00016986,2]
[363983322,1748952644180,-775.51,0.00016986,2]
[363983324,1748952644190,-440.0,0.00016986,2]
[363983325,1748952644199,-151.0,0.00016986,2]
[363983327,1748952644208,-440.0,0.00016986,2]
[363983329,1748952644217,-440.0,0.00016986,2]
[363983331,1748952644226,-151.0,0.00016986,2]
[363983341,1748952644313,-440.0,0.00016986,2]
[363983343,1748952644323,-440.0,0.00016986,2]
[363983345,1748952644334,-440.0,0.00016986,2]
[363983346,1748952644344,-440.0,0.00016986,2]
[363983348,1748952644353,-440.0,0.00016986,2]
[363983350,1748952644363,-440.0,0.00016986,2]
[363983352,1748952644372,-440.0,0.00016986,2]
[363983354,1748952644381,-440.0,0.00016986,2]
[363983356,1748952644391,-430.0,0.00016986,2]
[363983358,1748952644400,-440.0,0.00016986,2]
[363983360,1748952644412,-400.0,0.00016986,2]
[363983362,1748952644430,-400.0,0.00016986,2]
[363983363,1748952644451,-415.35967499,0.00016986,2]
[363983365,1748952644473,-440.0,0.00016986,2]
[363983367,1748952644494,-440.0,0.00016986,2]
[363983369,1748952644515,-440.0,0.00016986,2]
[363983371,1748952644537,-440.0,0.00016986,2]
[363983373,1748952644558,-830.89,0.00016986,2]
[363983375,1748952644579,-151.0,0.00016986,2]
[363983377,1748952644602,-721.62,0.00016986,2]
[363983379,1748952644622,-658.97,0.00016986,2]
[363983381,1748952644632,-440.0,0.00016986,2]
[363983383,1748952644642,-440.0,0.00016986,2]
[363983385,1748952644652,-440.0,0.00016986,2]
[363983387,1748952644663,-440.0,0.00016986,2]
[363983390,1748952644673,-440.0,0.00016986,2]
[363983392,1748952644683,-151.0,0.00016986,2]
[363983394,1748952644692,-440.0,0.00016986,2]
[363983395,1748952644702,-440.0,0.00016986,2]
[363983396,1748952644711,-440.0,0.00016986,2]
[363983397,1748952644722,-440.0,0.00016986,2]
[363983398,1748952644732,-440.0,0.00016986,2]
[363983399,1748952644741,-793.39,0.00016986,2]
[363983400,1748952644750,-404.66447867,0.00016986,2]
[363983401,1748952644761,-440.0,0.00016986,2]
[363983402,1748952644770,-508.222266,0.00016986,2]
[363983403,1748952644780,-508.222266,0.00016986,2]
[363983404,1748952644789,-440.0,0.00016986,2]
[363983405,1748952644800,-256.70956453,0.00016986,2]
[363983406,1748952644810,-508.222266,0.00016986,2]
[363983407,1748952644819,-440.0,0.00016986,2]
[363983408,1748952644828,-508.222266,0.00016986,2]
[363983409,1748952644837,-440.0,0.00016986,2]
[363983410,1748952644846,-440.0,0.00016986,2]
[363983411,1748952644856,-400.0,0.00016986,2]
[363983412,1748952644865,-440.0,0.00016986,2]
[363983413,1748952644874,-151.0,0.00016986,2]
[363983414,1748952644884,-151.0,0.00016986,2]
[363983415,1748952644893,-910.15,0.00016986,2]
[363983416,1748952644902,-440.0,0.00016986,2]
[363983417,1748952644912,-440.0,0.00016986,2]
[363983418,1748952644921,-487.3006628,0.00016986,2]
[363983419,1748952644931,-440.0,0.00016986,2]
[363983420,1748952644940,-440.0,0.00016986,2]
[363983421,1748952644949,-440.0,0.00016986,2]
[363983422,1748952644960,-440.0,0.00016986,2]
[363983423,1748952644969,-1158.85,0.00016986,2]
[363983424,1748952644978,-440.0,0.00016986,2]
[363983425,1748952644988,-440.0,0.00016986,2]
[363983426,1748952644997,-440.0,0.00016986,2]
[363983427,1748952645007,-440.0,0.00016986,2]
[363983428,1748952645016,-1354.75,0.00016986,2]
[363983429,1748952645025,-4178.31,0.00016986,2]
[363983431,1748952645036,-440.0,0.00016986,2]
[363983433,1748952645045,-440.0,0.00016986,2]